[Event "*** Titled Tuesday Blitz"]
[Site "Chess.com"]
[Date "2020.10.27"]
[Round "8"]
[White "verdest"]
[Black "Khazieva_Elza"]
[Result "1-0"]
[WhiteElo "2628"]
[BlackElo "2476"]
[TimeControl "180+1"]
[EndTime "11:30:14 PDT"]
[Termination "verdest won by checkmate"]

1. d4 {[%clk 0:03:00.9]} 1... Nf6 {[%clk 0:01:40.4]} 2. c4 {[%clk 0:03:00.2]}
2... d6 {[%clk 0:01:40.5]} 3. Nf3 {[%clk 0:02:58.8]} 3... Bf5 {[%clk 0:01:40.6]}
4. g3 {[%clk 0:02:56.6]} 4... c6 {[%clk 0:01:40.1]} 5. Bg2 {[%clk 0:02:55.9]}
5... h6 {[%clk 0:01:40.1]} 6. O-O {[%clk 0:02:54.9]} 6... Nbd7 {[%clk
0:01:40.4]} 7. Nc3 {[%clk 0:02:53.5]} 7... e5 {[%clk 0:01:40.5]} 8. Re1 {[%clk
0:02:50.7]} 8... Be7 {[%clk 0:01:40.2]} 9. e4 {[%clk 0:02:49.2]} 9... Bh7 {[%clk
0:01:38.7]} 10. Nh4 {[%clk 0:02:45.4]} 10... O-O {[%clk 0:01:38]} 11. Nf5 {[%clk
0:02:36]} 11... Bxf5 {[%clk 0:01:35.8]} 12. exf5 {[%clk 0:02:36.9]} 12... Re8
{[%clk 0:01:17.3]} 13. Be3 {[%clk 0:02:23.4]} 13... exd4 {[%clk 0:01:10.8]} 14.
Bxd4 {[%clk 0:02:23]} 14... Qa5 {[%clk 0:01:10.9]} 15. Qc2 {[%clk 0:02:16.8]}
15... Ne5 {[%clk 0:01:03.3]} 16. c5 {[%clk 0:02:04.8]} 16... Ned7 {[%clk
0:00:52.4]} 17. cxd6 {[%clk 0:01:13.3]} 17... Bxd6 {[%clk 0:00:52.3]} 18. Ne4
{[%clk 0:01:07.1]} 18... Be5 {[%clk 0:00:34.5]} 19. Nxf6+ {[%clk 0:00:59.6]}
19... Bxf6 {[%clk 0:00:34.2]} 20. Red1 {[%clk 0:00:48.4]} 20... Bxd4 {[%clk
0:00:29.5]} 21. Rxd4 {[%clk 0:00:49.3]} 21... Ne5 {[%clk 0:00:29.7]} 22. Qe4
{[%clk 0:00:44.6]} 22... Nc4 {[%clk 0:00:20.9]} 23. Qg4 {[%clk 0:00:39]} 23...
Re1+ {[%clk 0:00:19.4]} 24. Rxe1 {[%clk 0:00:37.3]} 24... Qxe1+ {[%clk
0:00:20.3]} 25. Bf1 {[%clk 0:00:37.2]} 25... Nd2 {[%clk 0:00:20.5]} 26. Qe2
{[%clk 0:00:31.1]} 26... Qxf1+ {[%clk 0:00:08.5]} 27. Qxf1 {[%clk 0:00:30.7]}
27... Nxf1 {[%clk 0:00:09.4]} 28. Kxf1 {[%clk 0:00:31.6]} 28... Kf8 {[%clk
0:00:08.9]} 29. Rd7 {[%clk 0:00:31.5]} 29... Rb8 {[%clk 0:00:09.4]} 30. Ke2
{[%clk 0:00:29.5]} 30... Ke8 {[%clk 0:00:09.5]} 31. Rc7 {[%clk 0:00:28.7]} 31...
a5 {[%clk 0:00:09.9]} 32. Ke3 {[%clk 0:00:27.4]} 32... a4 {[%clk 0:00:07.9]} 33.
Ke4 {[%clk 0:00:26.6]} 33... Kf8 {[%clk 0:00:05]} 34. Ke5 {[%clk 0:00:23.3]}
34... Re8+ {[%clk 0:00:05.1]} 35. Kd6 {[%clk 0:00:23.6]} 35... Rd8+ {[%clk
0:00:04.7]} 36. Rd7 {[%clk 0:00:23.7]} 36... Rb8 {[%clk 0:00:04.1]} 37. Kc7
{[%clk 0:00:23.3]} 37... Re8 {[%clk 0:00:04.4]} 38. Rd2 {[%clk 0:00:10.4]} 38...
Re5 {[%clk 0:00:03]} 39. Kxb7 {[%clk 0:00:09.4]} 39... Rxf5 {[%clk 0:00:02.9]}
40. Kxc6 {[%clk 0:00:09.5]} 40... Rh5 {[%clk 0:00:02.8]} 41. h4 {[%clk
0:00:08.8]} 41... Ra5 {[%clk 0:00:02.9]} 42. b4 {[%clk 0:00:08.1]} 42... axb3
{[%clk 0:00:03]} 43. axb3 {[%clk 0:00:08.5]} 43... Ke7 {[%clk 0:00:03.3]} 44. b4
{[%clk 0:00:08.2]} 44... Ra3 {[%clk 0:00:04.2]} 45. b5 {[%clk 0:00:06.4]} 45...
Rc3+ {[%clk 0:00:04.9]} 46. Kb7 {[%clk 0:00:06.6]} 46... Ke6 {[%clk 0:00:05]}
47. b6 {[%clk 0:00:07]} 47... Rb3 {[%clk 0:00:05.5]} 48. Ka7 {[%clk 0:00:07]}
48... Ra3+ {[%clk 0:00:05.4]} 49. Kb8 {[%clk 0:00:07.3]} 49... Rb3 {[%clk
0:00:06.3]} 50. b7 {[%clk 0:00:07.6]} 50... Ke5 {[%clk 0:00:06.1]} 51. Rc2
{[%clk 0:00:07]} 51... Ke4 {[%clk 0:00:05.7]} 52. Kc8 {[%clk 0:00:07]} 52... g5
{[%clk 0:00:04.7]} 53. hxg5 {[%clk 0:00:06.6]} 53... hxg5 {[%clk 0:00:05.6]} 54.
b8=Q {[%clk 0:00:07.1]} 54... Rxb8+ {[%clk 0:00:05.9]} 55. Kxb8 {[%clk 0:00:08]}
55... f5 {[%clk 0:00:06.8]} 56. Kc7 {[%clk 0:00:08.3]} 56... f4 {[%clk
0:00:07.7]} 57. gxf4 {[%clk 0:00:09.2]} 57... gxf4 {[%clk 0:00:08.6]} 58. Kd6
{[%clk 0:00:09.5]} 58... f3 {[%clk 0:00:09.1]} 59. Ke6 {[%clk 0:00:09.2]} 59...
Kd3 {[%clk 0:00:09.7]} 60. Ra2 {[%clk 0:00:08.6]} 60... Ke4 {[%clk 0:00:10.1]}
61. Kf6 {[%clk 0:00:08.6]} 61... Kf4 {[%clk 0:00:10.5]} 62. Ra4# {[%clk
0:00:08.6]} 1-0

[Event "*** Titled Tuesday Blitz"]
[Site "Chess.com"]
[Date "2020.10.27"]
[Round "8"]
[White "geordie_derraugh"]
[Black "politeplayer"]
[Result "1/2-1/2"]
[WhiteElo "2406"]
[BlackElo "2222"]
[TimeControl "180+1"]
[EndTime "11:30:15 PDT"]
[Termination "Game drawn by agreement"]

1. e4 {[%clk 0:03:00.9]} 1... c5 {[%clk 0:02:59.7]} 2. Nf3 {[%clk 0:03:00.1]}
2... d6 {[%clk 0:02:59.3]} 3. Bb5+ {[%clk 0:02:59.8]} 3... Nc6 {[%clk
0:02:58.1]} 4. Bxc6+ {[%clk 0:02:59.3]} 4... bxc6 {[%clk 0:02:57.7]} 5. O-O
{[%clk 0:02:59.9]} 5... e5 {[%clk 0:02:56.4]} 6. c3 {[%clk 0:02:59.3]} 6... f5
{[%clk 0:02:56.4]} 7. exf5 {[%clk 0:02:57.8]} 7... Bxf5 {[%clk 0:02:55.5]} 8. d4
{[%clk 0:02:53.9]} 8... e4 {[%clk 0:02:55.8]} 9. Re1 {[%clk 0:02:53]} 9... Be7
{[%clk 0:02:53.8]} 10. Nfd2 {[%clk 0:02:47.5]} 10... Nf6 {[%clk 0:02:50.2]} 11.
dxc5 {[%clk 0:02:45.7]} 11... d5 {[%clk 0:02:50.4]} 12. b4 {[%clk 0:02:42.6]}
12... O-O {[%clk 0:02:38.5]} 13. Nb3 {[%clk 0:02:42.2]} 13... Ng4 {[%clk
0:02:28.7]} 14. Be3 {[%clk 0:02:39.3]} 14... Bg5 {[%clk 0:02:08.7]} 15. Bxg5
{[%clk 0:01:40.2]} 15... Qxg5 {[%clk 0:02:06.7]} 16. Qd2 {[%clk 0:01:14.4]}
16... e3 {[%clk 0:01:41.6]} 17. fxe3 {[%clk 0:01:13.7]} 17... Ne5 {[%clk
0:01:31.7]} 18. Kh1 {[%clk 0:00:59.7]} 18... Nd3 {[%clk 0:01:23.6]} 19. e4
{[%clk 0:00:42.6]} 19... Qxd2 {[%clk 0:00:42.4]} 20. N1xd2 {[%clk 0:00:43.5]}
20... Nxe1 {[%clk 0:00:40.5]} 21. exf5 {[%clk 0:00:39.6]} 21... Rae8 {[%clk
0:00:39.6]} 22. Nd4 {[%clk 0:00:38.3]} 22... Nd3 {[%clk 0:00:36.3]} 23. g4
{[%clk 0:00:28]} 23... Nf2+ {[%clk 0:00:35.4]} 24. Kg2 {[%clk 0:00:26.9]} 24...
Nxg4 {[%clk 0:00:35.7]} 25. N2f3 {[%clk 0:00:19.4]} 25... Ne3+ {[%clk
0:00:34.1]} 26. Kf2 {[%clk 0:00:11.6]} 26... Nxf5 {[%clk 0:00:33.6]} 27. Kg2
{[%clk 0:00:09.2]} 27... Nxd4 {[%clk 0:00:31.5]} 28. Nxd4 {[%clk 0:00:10.1]}
28... Re3 {[%clk 0:00:30.8]} 29. Nxc6 {[%clk 0:00:09.2]} 29... Rxc3 {[%clk
0:00:28.2]} 30. Ne7+ {[%clk 0:00:09.3]} 30... Kh8 {[%clk 0:00:28.2]} 31. Nxd5
{[%clk 0:00:09.6]} 31... Rc2+ {[%clk 0:00:26.5]} 32. Kg3 {[%clk 0:00:09.5]}
32... Rd8 {[%clk 0:00:26.2]} 33. Re1 {[%clk 0:00:07.1]} 33... h6 {[%clk
0:00:23.8]} 34. Nf4 {[%clk 0:00:07.3]} 34... Rxa2 {[%clk 0:00:21.9]} 35. Rc1
{[%clk 0:00:06.5]} 35... Ra4 {[%clk 0:00:19.8]} 36. Rc4 {[%clk 0:00:04.8]} 36...
a5 {[%clk 0:00:19.1]} 37. c6 {[%clk 0:00:03.4]} 37... Rxb4 {[%clk 0:00:18.7]}
38. c7 {[%clk 0:00:03.8]} 38... Rc8 {[%clk 0:00:17.2]} 39. Rc5 {[%clk 0:00:04]}
39... Rb7 {[%clk 0:00:17]} 40. Nd5 {[%clk 0:00:04.4]} 40... a4 {[%clk
0:00:16.1]} 41. Ra5 {[%clk 0:00:04.2]} 41... Rbxc7 {[%clk 0:00:15.1]} 42. Nxc7
{[%clk 0:00:04.5]} 42... Rxc7 {[%clk 0:00:15.2]} 43. Rxa4 {[%clk 0:00:05.2]}
43... Rc3+ {[%clk 0:00:15.5]} 44. Kg4 {[%clk 0:00:05.3]} 44... Kh7 {[%clk
0:00:15.9]} 45. h4 {[%clk 0:00:05.6]} 45... Rd3 {[%clk 0:00:15.6]} 46. Ra6
{[%clk 0:00:05.3]} 46... Rd4+ {[%clk 0:00:15.4]} 47. Kg3 {[%clk 0:00:05.6]}
47... Rc4 {[%clk 0:00:15.4]} 48. Ra5 {[%clk 0:00:05.8]} 48... g6 {[%clk
0:00:15]} 49. Ra7+ {[%clk 0:00:05.7]} 49... Kg8 {[%clk 0:00:15]} 50. Kh3 {[%clk
0:00:06.1]} 50... Rd4 {[%clk 0:00:14.1]} 51. Kg3 {[%clk 0:00:06.4]} 51... Re4
{[%clk 0:00:14.3]} 52. Ra6 {[%clk 0:00:06.3]} 52... Kg7 {[%clk 0:00:14.3]} 53.
Ra7+ {[%clk 0:00:06.7]} 53... Kf6 {[%clk 0:00:14.6]} 54. Rh7 {[%clk 0:00:06.7]}
54... h5 {[%clk 0:00:12.7]} 55. Ra7 {[%clk 0:00:06.7]} 55... Rg4+ {[%clk
0:00:12.7]} 56. Kh3 {[%clk 0:00:07.2]} 56... Kf5 {[%clk 0:00:12.9]} 57. Ra5+
{[%clk 0:00:07]} 57... Kf6 {[%clk 0:00:13]} 58. Ra6+ {[%clk 0:00:07.2]} 58...
Ke5 {[%clk 0:00:13.2]} 59. Ra8 {[%clk 0:00:07.4]} 59... g5 {[%clk 0:00:11.5]}
60. Re8+ {[%clk 0:00:07]} 60... Kf6 {[%clk 0:00:11.2]} 61. hxg5+ {[%clk
0:00:06.3]} 61... Rxg5 {[%clk 0:00:10.7]} 62. Rf8+ {[%clk 0:00:06.1]} 62... Kg7
{[%clk 0:00:10.4]} 63. Ra8 {[%clk 0:00:06.7]} 1/2-1/2

[Event "*** Titled Tuesday Blitz"]
[Site "Chess.com"]
[Date "2020.10.27"]
[Round "8"]
[White "GrafLermontov"]
[Black "MaxLeto"]
[Result "0-1"]
[WhiteElo "2460"]
[BlackElo "2351"]
[TimeControl "180+1"]
[EndTime "11:30:16 PDT"]
[Termination "MaxLeto won by checkmate"]

1. d4 {[%clk 0:03:00.9]} 1... Nf6 {[%clk 0:02:52.1]} 2. c4 {[%clk 0:02:56.7]}
2... g6 {[%clk 0:02:52]} 3. Nc3 {[%clk 0:02:51.4]} 3... Bg7 {[%clk 0:02:52.3]}
4. e4 {[%clk 0:02:51.6]} 4... d6 {[%clk 0:02:51.7]} 5. Be2 {[%clk 0:02:52.1]}
5... O-O {[%clk 0:02:51]} 6. Be3 {[%clk 0:02:52.7]} 6... e5 {[%clk 0:02:50.1]}
7. d5 {[%clk 0:02:52.9]} 7... Nfd7 {[%clk 0:02:36.1]} 8. g4 {[%clk 0:02:51.2]}
8... a5 {[%clk 0:02:15.5]} 9. h4 {[%clk 0:02:47.1]} 9... Nc5 {[%clk 0:02:13.3]}
10. h5 {[%clk 0:02:44.4]} 10... c6 {[%clk 0:01:45.5]} 11. g5 {[%clk 0:02:29.4]}
11... Nba6 {[%clk 0:01:24.3]} 12. Qd2 {[%clk 0:02:10.9]} 12... cxd5 {[%clk
0:00:59.6]} 13. Nxd5 {[%clk 0:02:11.8]} 13... Nxe4 {[%clk 0:00:56.7]} 14. Qc1
{[%clk 0:01:58.3]} 14... Nac5 {[%clk 0:00:45.9]} 15. Rh4 {[%clk 0:01:19.9]}
15... Be6 {[%clk 0:00:41.6]} 16. Nf3 {[%clk 0:00:31.6]} 16... Bxd5 {[%clk
0:00:37.3]} 17. cxd5 {[%clk 0:00:32.5]} 17... Rc8 {[%clk 0:00:36.4]} 18. Qd1
{[%clk 0:00:29.5]} 18... f5 {[%clk 0:00:15.8]} 19. gxf6 {[%clk 0:00:28.9]} 19...
Qxf6 {[%clk 0:00:16]} 20. hxg6 {[%clk 0:00:20]} 20... hxg6 {[%clk 0:00:15]} 21.
a3 {[%clk 0:00:12.7]} 21... Nxf2 {[%clk 0:00:11.9]} 22. Bxf2 {[%clk 0:00:13.6]}
22... e4 {[%clk 0:00:12.1]} 23. Bd4 {[%clk 0:00:08.9]} 23... Qe7 {[%clk
0:00:07.4]} 24. Bxg7 {[%clk 0:00:08.8]} 24... exf3 {[%clk 0:00:07]} 25. Bxf8
{[%clk 0:00:03.4]} 25... Qxh4+ {[%clk 0:00:06.1]} 26. Kd2 {[%clk 0:00:03.9]}
26... fxe2 {[%clk 0:00:05.8]} 27. Qxe2 {[%clk 0:00:03.9]} 27... Rxf8 {[%clk
0:00:05.9]} 28. Rg1 {[%clk 0:00:03.8]} 28... Qf4+ {[%clk 0:00:05.8]} 29. Kc2
{[%clk 0:00:04.3]} 29... Qf5+ {[%clk 0:00:06]} 30. Kc1 {[%clk 0:00:03.8]} 30...
Qf4+ {[%clk 0:00:05.3]} 31. Kb1 {[%clk 0:00:03.9]} 31... Qe4+ {[%clk 0:00:05.8]}
32. Qxe4 {[%clk 0:00:04.2]} 32... Nxe4 {[%clk 0:00:06.7]} 33. Rxg6+ {[%clk
0:00:04.7]} 33... Kf7 {[%clk 0:00:07.4]} 34. Rh6 {[%clk 0:00:04.9]} 34... Rg8
{[%clk 0:00:07.3]} 35. Rh7+ {[%clk 0:00:04.9]} 35... Rg7 {[%clk 0:00:07.7]} 36.
Rh8 {[%clk 0:00:05.8]} 36... Ke7 {[%clk 0:00:07.7]} 37. Rb8 {[%clk 0:00:05.4]}
37... Kf6 {[%clk 0:00:07.6]} 38. Rd8 {[%clk 0:00:05]} 38... Ke5 {[%clk
0:00:07.8]} 39. b4 {[%clk 0:00:05.2]} 39... axb4 {[%clk 0:00:07.8]} 40. axb4
{[%clk 0:00:06.1]} 40... Kxd5 {[%clk 0:00:08.5]} 41. Kc2 {[%clk 0:00:07]} 41...
b5 {[%clk 0:00:08.7]} 42. Kd3 {[%clk 0:00:07.2]} 42... Rg3+ {[%clk 0:00:08.4]}
43. Ke2 {[%clk 0:00:07.1]} 43... Rc3 {[%clk 0:00:08.1]} 44. Rb8 {[%clk 0:00:07]}
44... Kc4 {[%clk 0:00:08.3]} 45. Rc8+ {[%clk 0:00:05.6]} 45... Kxb4 {[%clk
0:00:08.6]} 46. Re8 {[%clk 0:00:05]} 46... Nc5 {[%clk 0:00:08.8]} 47. Kd2 {[%clk
0:00:05.1]} 47... Rd3+ {[%clk 0:00:09.1]} 48. Kc2 {[%clk 0:00:05.7]} 48... d5
{[%clk 0:00:09.4]} 49. Re5 {[%clk 0:00:04.9]} 49... Kc4 {[%clk 0:00:09.2]} 50.
Rh5 {[%clk 0:00:04.9]} 50... b4 {[%clk 0:00:09.6]} 51. Rh4+ {[%clk 0:00:05.8]}
51... d4 {[%clk 0:00:09.4]} 52. Rh5 {[%clk 0:00:05.9]} 52... b3+ {[%clk
0:00:09.9]} 53. Kb2 {[%clk 0:00:06.6]} 53... Rd2+ {[%clk 0:00:10.1]} 54. Kc1
{[%clk 0:00:07.2]} 54... Rc2+ {[%clk 0:00:10.2]} 55. Kb1 {[%clk 0:00:06.7]}
55... d3 {[%clk 0:00:10.6]} 56. Rh4+ {[%clk 0:00:05.8]} 56... Kc3 {[%clk
0:00:10.4]} 57. Rh5 {[%clk 0:00:05.9]} 57... Ne4 {[%clk 0:00:10]} 58. Rh1 {[%clk
0:00:04.5]} 58... Nd2+ {[%clk 0:00:10]} 59. Ka1 {[%clk 0:00:04.4]} 59... Nc4
{[%clk 0:00:08.6]} 60. Rb1 {[%clk 0:00:03.3]} 60... Ra2# {[%clk 0:00:08.6]} 0-1

[Event "*** Titled Tuesday Blitz"]
[Site "Chess.com"]
[Date "2020.10.27"]
[Round "8"]
[White "DinaBelenkaya"]
[Black "pedromartinez91"]
[Result "0-1"]
[WhiteElo "2372"]
[BlackElo "2630"]
[TimeControl "180+1"]
[EndTime "11:30:20 PDT"]
[Termination "pedromartinez91 won by checkmate"]

1. e4 {[%clk 0:03:00.9]} 1... e6 {[%clk 0:03:00.2]} 2. Qe2 {[%clk 0:03:00.5]}
2... d5 {[%clk 0:03:01.1]} 3. exd5 {[%clk 0:02:59.1]} 3... Qxd5 {[%clk 0:03:02]}
4. Nc3 {[%clk 0:02:59.5]} 4... Qd8 {[%clk 0:03:02.9]} 5. g3 {[%clk 0:02:59.2]}
5... Nf6 {[%clk 0:03:03.8]} 6. Bg2 {[%clk 0:02:59.4]} 6... Be7 {[%clk
0:03:04.7]} 7. Nf3 {[%clk 0:02:53]} 7... Nc6 {[%clk 0:03:04.9]} 8. O-O {[%clk
0:02:51.6]} 8... O-O {[%clk 0:03:05]} 9. Rd1 {[%clk 0:02:46.4]} 9... Nd4 {[%clk
0:02:44.5]} 10. Nxd4 {[%clk 0:02:43.9]} 10... Qxd4 {[%clk 0:02:45.4]} 11. d3
{[%clk 0:02:39.5]} 11... c6 {[%clk 0:02:45.2]} 12. Be3 {[%clk 0:02:39]} 12...
Qd8 {[%clk 0:02:45.7]} 13. d4 {[%clk 0:02:38.9]} 13... Nd5 {[%clk 0:02:42]} 14.
Bd2 {[%clk 0:02:18.5]} 14... b6 {[%clk 0:02:34.5]} 15. Ne4 {[%clk 0:02:17.3]}
15... Bb7 {[%clk 0:02:34.8]} 16. c4 {[%clk 0:02:16]} 16... Nf6 {[%clk
0:02:35.2]} 17. Bc3 {[%clk 0:02:13.2]} 17... Qc7 {[%clk 0:02:29.3]} 18. h4
{[%clk 0:01:24.8]} 18... Rad8 {[%clk 0:02:26.3]} 19. h5 {[%clk 0:01:20.8]} 19...
h6 {[%clk 0:02:26.6]} 20. b4 {[%clk 0:01:11.4]} 20... c5 {[%clk 0:01:50.2]} 21.
bxc5 {[%clk 0:01:05.4]} 21... bxc5 {[%clk 0:01:48.6]} 22. d5 {[%clk 0:01:04.7]}
22... Nxe4 {[%clk 0:01:42.7]} 23. Bxe4 {[%clk 0:01:04.8]} 23... e5 {[%clk
0:01:19]} 24. Bf5 {[%clk 0:00:56.3]} 24... Bd6 {[%clk 0:01:17.7]} 25. Rab1
{[%clk 0:00:49.7]} 25... Bc8 {[%clk 0:01:17.6]} 26. Qe4 {[%clk 0:00:39]} 26...
Bxf5 {[%clk 0:01:10.4]} 27. Qxf5 {[%clk 0:00:39.9]} 27... Rb8 {[%clk 0:01:10.7]}
28. a4 {[%clk 0:00:39.2]} 28... Rxb1 {[%clk 0:00:52]} 29. Rxb1 {[%clk
0:00:40.1]} 29... Rb8 {[%clk 0:00:52.3]} 30. Rb5 {[%clk 0:00:38.7]} 30... a6
{[%clk 0:00:48.3]} 31. Ba5 {[%clk 0:00:38.9]} 31... Qa7 {[%clk 0:00:24.5]} 32.
Rxb8+ {[%clk 0:00:37.4]} 32... Qxb8 {[%clk 0:00:25.4]} 33. Kg2 {[%clk
0:00:35.9]} 33... Qe8 {[%clk 0:00:15.4]} 34. Bb6 {[%clk 0:00:32]} 34... e4
{[%clk 0:00:14.4]} 35. a5 {[%clk 0:00:15.8]} 35... e3 {[%clk 0:00:11.2]} 36.
fxe3 {[%clk 0:00:16.7]} 36... Qxe3 {[%clk 0:00:11.1]} 37. Qc8+ {[%clk 0:00:17]}
37... Kh7 {[%clk 0:00:11.3]} 38. Qf5+ {[%clk 0:00:17]} 38... Kg8 {[%clk
0:00:11.6]} 39. Qc8+ {[%clk 0:00:16.5]} 39... Bf8 {[%clk 0:00:11.9]} 40. Bc7
{[%clk 0:00:14.7]} 40... Qe2+ {[%clk 0:00:10.2]} 41. Kg1 {[%clk 0:00:13.1]}
41... Qe1+ {[%clk 0:00:09]} 42. Kh2 {[%clk 0:00:12.3]} 42... Qe2+ {[%clk
0:00:08.8]} 43. Kg1 {[%clk 0:00:11.6]} 43... Qxh5 {[%clk 0:00:08.1]} 44. d6
{[%clk 0:00:06.2]} 44... Qd1+ {[%clk 0:00:07.9]} 45. Kf2 {[%clk 0:00:06.1]}
45... Qd4+ {[%clk 0:00:07.9]} 46. Kf3 {[%clk 0:00:05.4]} 46... Qd3+ {[%clk
0:00:07.6]} 47. Kf2 {[%clk 0:00:05.4]} 47... Qd2+ {[%clk 0:00:07.7]} 48. Kf3
{[%clk 0:00:05.5]} 48... Qd1+ {[%clk 0:00:08]} 49. Kf2 {[%clk 0:00:05.7]} 49...
Qd4+ {[%clk 0:00:08.3]} 50. Kf3 {[%clk 0:00:05.5]} 50... Qxc4 {[%clk 0:00:08.7]}
51. d7 {[%clk 0:00:03]} 51... Qd5+ {[%clk 0:00:09]} 52. Kf2 {[%clk 0:00:02.5]}
52... Qd4+ {[%clk 0:00:08.2]} 53. Ke2 {[%clk 0:00:02.4]} 53... Qe4+ {[%clk
0:00:07.3]} 54. Kf2 {[%clk 0:00:02.9]} 54... Qd4+ {[%clk 0:00:06.7]} 55. Kg2
{[%clk 0:00:03.2]} 55... Qd2+ {[%clk 0:00:06.7]} 56. Kh3 {[%clk 0:00:02.7]}
56... Qd1 {[%clk 0:00:04.2]} 57. d8=Q {[%clk 0:00:02.5]} 57... Qh1+ {[%clk
0:00:04.8]} 58. Kg4 {[%clk 0:00:02.9]} 58... Qe4+ {[%clk 0:00:05]} 59. Kh3
{[%clk 0:00:02.9]} 59... Qh1+ {[%clk 0:00:05]} 60. Kg4 {[%clk 0:00:03.2]} 60...
Qe4+ {[%clk 0:00:05.3]} 61. Bf4 {[%clk 0:00:01.8]} 61... h5+ {[%clk 0:00:05.5]}
62. Kh3 {[%clk 0:00:02.1]} 62... Qh1# {[%clk 0:00:05.3]} 0-1

[Event "*** Titled Tuesday Blitz"]
[Site "Chess.com"]
[Date "2020.10.27"]
[Round "8"]
[White "Brave_spirit12"]
[Black "Leonid_Starozhilov"]
[Result "0-1"]
[WhiteElo "2497"]
[BlackElo "2645"]
[TimeControl "180+1"]
[EndTime "11:30:29 PDT"]
[Termination "Leonid_Starozhilov won by checkmate"]

1. e4 {[%clk 0:03:00]} 1... c5 {[%clk 0:02:59.8]} 2. c3 {[%clk 0:02:59]} 2... d6
{[%clk 0:02:59.9]} 3. Nf3 {[%clk 0:02:56]} 3... Nf6 {[%clk 0:02:59.7]} 4. Be2
{[%clk 0:02:56.5]} 4... g6 {[%clk 0:02:58.3]} 5. O-O {[%clk 0:02:55.8]} 5... Bg7
{[%clk 0:02:58.6]} 6. d3 {[%clk 0:02:54.8]} 6... O-O {[%clk 0:02:59.2]} 7. Bf4
{[%clk 0:02:53.7]} 7... Nc6 {[%clk 0:02:53.2]} 8. Nbd2 {[%clk 0:01:13.6]} 8...
Nh5 {[%clk 0:02:52.6]} 9. Be3 {[%clk 0:01:12.3]} 9... e5 {[%clk 0:02:52.5]} 10.
d4 {[%clk 0:01:13.2]} 10... cxd4 {[%clk 0:02:49.4]} 11. cxd4 {[%clk 0:01:14.1]}
11... exd4 {[%clk 0:02:48.5]} 12. Bg5 {[%clk 0:01:14.3]} 12... Bf6 {[%clk
0:02:36]} 13. Bh6 {[%clk 0:01:13.2]} 13... Re8 {[%clk 0:02:36]} 14. Bc4 {[%clk
0:01:12.2]} 14... Be6 {[%clk 0:02:32.3]} 15. Bd5 {[%clk 0:01:09]} 15... Bxd5
{[%clk 0:02:15.8]} 16. exd5 {[%clk 0:01:09.9]} 16... Ne5 {[%clk 0:01:38.1]} 17.
Nxd4 {[%clk 0:01:03.2]} 17... Nd3 {[%clk 0:01:11.1]} 18. N2f3 {[%clk 0:00:57.7]}
18... Ndf4 {[%clk 0:00:42.9]} 19. Qd2 {[%clk 0:00:54]} 19... Nxd5 {[%clk
0:00:39.1]} 20. Rfe1 {[%clk 0:00:51.2]} 20... Qd7 {[%clk 0:00:37.4]} 21. Nb5
{[%clk 0:00:47]} 21... Qxb5 {[%clk 0:00:35.2]} 22. a4 {[%clk 0:00:36.6]} 22...
Qb3 {[%clk 0:00:25.8]} 23. Red1 {[%clk 0:00:22.9]} 23... Nb6 {[%clk 0:00:19.8]}
24. Qxd6 {[%clk 0:00:20.3]} 24... Bg7 {[%clk 0:00:20.1]} 25. Bg5 {[%clk
0:00:18]} 25... Qe6 {[%clk 0:00:17.9]} 26. Qc7 {[%clk 0:00:17.7]} 26... h6
{[%clk 0:00:17.7]} 27. Be3 {[%clk 0:00:17.1]} 27... Re7 {[%clk 0:00:15.8]} 28.
Qc5 {[%clk 0:00:15.9]} 28... Rc8 {[%clk 0:00:14.4]} 29. Qa3 {[%clk 0:00:15.4]}
29... Nc4 {[%clk 0:00:14]} 30. Qd3 {[%clk 0:00:15.2]} 30... Nxe3 {[%clk
0:00:14.2]} 31. fxe3 {[%clk 0:00:15.6]} 31... Qxe3+ {[%clk 0:00:14.3]} 32. Qxe3
{[%clk 0:00:16.5]} 32... Rxe3 {[%clk 0:00:15]} 33. Rd7 {[%clk 0:00:17.4]} 33...
Rb3 {[%clk 0:00:14.1]} 34. Rf1 {[%clk 0:00:14.8]} 34... Nf6 {[%clk 0:00:14]} 35.
Re7 {[%clk 0:00:14.4]} 35... Nd5 {[%clk 0:00:14.2]} 36. Rd7 {[%clk 0:00:14.3]}
36... Ne3 {[%clk 0:00:14.5]} 37. Re1 {[%clk 0:00:14.3]} 37... Nf5 {[%clk
0:00:13.3]} 38. Re2 {[%clk 0:00:12]} 38... Rxb2 {[%clk 0:00:12.5]} 39. Rxb2
{[%clk 0:00:10.8]} 39... Bxb2 {[%clk 0:00:12.2]} 40. Rxb7 {[%clk 0:00:11.7]}
40... Bd4+ {[%clk 0:00:11]} 41. Nxd4 {[%clk 0:00:11.5]} 41... Nxd4 {[%clk
0:00:11.9]} 42. Rxa7 {[%clk 0:00:12.4]} 42... Rc2 {[%clk 0:00:11.8]} 43. a5
{[%clk 0:00:11.4]} 43... Ra2 {[%clk 0:00:11.4]} 44. Ra8+ {[%clk 0:00:11.2]}
44... Kg7 {[%clk 0:00:11.7]} 45. h4 {[%clk 0:00:09.6]} 45... h5 {[%clk
0:00:11.3]} 46. Kh2 {[%clk 0:00:09.3]} 46... Nf5 {[%clk 0:00:11.6]} 47. Kh3
{[%clk 0:00:08.9]} 47... Ra3+ {[%clk 0:00:12.1]} 48. Kh2 {[%clk 0:00:08.9]}
48... Nxh4 {[%clk 0:00:12.6]} 49. a6 {[%clk 0:00:09.1]} 49... Ra2 {[%clk
0:00:11.9]} 50. a7 {[%clk 0:00:08.9]} 50... Nxg2 {[%clk 0:00:11.1]} 51. Kg3
{[%clk 0:00:09.5]} 51... Ne3 {[%clk 0:00:11.1]} 52. Kf3 {[%clk 0:00:09.6]} 52...
Nf5 {[%clk 0:00:11.2]} 53. Kf4 {[%clk 0:00:09.7]} 53... h4 {[%clk 0:00:11.5]}
54. Kg5 {[%clk 0:00:10]} 54... Ra3 {[%clk 0:00:09.4]} 55. Kf4 {[%clk 0:00:09.7]}
55... h3 {[%clk 0:00:09.2]} 56. Kg5 {[%clk 0:00:03.8]} 56... Rg3+ {[%clk
0:00:07.3]} 57. Kf4 {[%clk 0:00:03.7]} 57... Ra3 {[%clk 0:00:07.8]} 58. Kg5
{[%clk 0:00:03.8]} 58... h2 {[%clk 0:00:06.9]} 59. Rh8 {[%clk 0:00:04.3]} 59...
Kxh8 {[%clk 0:00:05.6]} 60. a8=Q+ {[%clk 0:00:05.2]} 60... Rxa8 {[%clk
0:00:05.8]} 61. Kf6 {[%clk 0:00:05.3]} 61... h1=Q {[%clk 0:00:05.9]} 62. Ke5
{[%clk 0:00:04.9]} 62... Qe1+ {[%clk 0:00:05.4]} 63. Kf6 {[%clk 0:00:05.8]}
63... Qe7# {[%clk 0:00:05.2]} 0-1